[Event "EIRCC 2019"]
[Site "Tallinn"]
[Date "2019.12.05"]
[Round "6.36"]
[White "Dragnev, Valentin"]
[Black "Lazavik, Denis"]
[Result "0-1"]
[ECO "D12"]
[WhiteElo "2380"]
[BlackElo "2201"]
[Annotator "NA"]
[PlyCount "114"]
[EventDate "2019.12.05"]
[EventType "swiss"]
[EventCountry "EST"]
[SourceTitle "playchess.com"]
[Source "ChessBase"]
[SourceQuality "1"]
[TimeControl "900+10"]

1. d4 {[%emt 0:00:00]} d5 {[%emt 0:00:00]} 2. c4 {[%emt 0:00:00]} c6 {[%emt 0:00:00]} 3. Nf3 {[%emt 0:00:00]} Nf6 {[%emt 0:00:12]} 4. e3 {[%emt 0:00:00]} Bf5 {[%emt 0:00:05]} 5. Nc3 {[%emt 0:00:00]} e6 {[%emt 0:00:04]} 6. Nh4 {[%emt 0:00:00]} Be4 {[%emt 0:00:10]} 7. f3 {[%emt 0:00:02]} Bg6 {[%emt 0:00:03]} 8. Qb3 {[%emt 0:00:02]} Qc7 {[%emt 0:00:04]} 9. Bd2 {[%emt 0:00:06]} Be7 {[%emt 0:00:03]} 10. cxd5 {[%emt 0:00:19]} exd5 {[%emt 0:02:08]} 11. Nxg6 {[%emt 0:00:14]} hxg6 {[%emt 0:00:03]} 12. e4 {[%emt 0:00:13]} Qb6 {[%emt 0:01:23]} 13. exd5 {[%emt 0:02:56]} Nxd5 {[%emt 0:00:21]} 14. Nxd5 {[%emt 0:00:14]} cxd5 {[%emt 0:00:03]} 15. Qxd5 {[%emt 0:03:23]} O-O {[%emt 0:00:34]} 16. O-O-O {[%emt 0:01:17]} Nc6 {[%emt 0:01:21]} 17. Qb5 {[%emt 0:00:35]} Qxd4 {[%emt 0:02:02]} 18. Be2 {[%emt 0:00:22]} a6 {[%emt 0:01:20]} 19. Qd3 {[%emt 0:01:17]} Qf2 {[%emt 0:01:05]} 20. Be3 {[%emt 0:03:53]} Qxg2 {[%emt 0:00:12]} 21. Rhg1 {[%emt 0:00:10]} Qh3 {[%emt 0:00:08]} 22. Kb1 {[%emt 0:00:10]} Qe6 {[%emt 0:00:40]} 23. Qb3 {[%emt 0:00:38]} Qxb3 {[%emt 0:01:29]} 24. axb3 {[%emt 0:00:02]} Rad8 {[%emt 0:00:47]} 25. Bb6 {[%emt 0:00:02]} Rxd1+ {[%emt 0:00:16]} 26. Rxd1 {[%emt 0:00:01]} Bd8 {[%emt 0:00:09]} 27. Bf2 {[%emt 0:00:14]} Re8 {[%emt 0:00:18]} 28. Bc4 {[%emt 0:00:02]} Bc7 {[%emt 0:00:34]} 29. h4 {[%emt 0:00:36]} Rd8 {[%emt 0:00:06]} 30. Rxd8+ {[%emt 0:01:22]} Bxd8 {[%emt 0:00:02]} 31. Bd5 {[%emt 0:00:12]} Bf6 {[%emt 0:00:03]} 32. Be4 {[%emt 0:00:18]} Kf8 {[%emt 0:00:08]} 33. f4 {[%emt 0:00:14]} Ke7 {[%emt 0:00:13]} 34. Bd5 {[%emt 0:00:02]} Nd8 {[%emt 0:00:58]} 35. Bf3 {[%emt 0:00:06]} Kd6 {[%emt 0:00:37]} 36. h5 {[%emt 0:00:10]} gxh5 37. Bxh5 {[%emt 0:00:01]} g6 {[%emt 0:00:09]} 38. Bf3 {[%emt 0:00:09]} Nc6 {[%emt 0:00:05]} 39. Be4 {[%emt 0:00:19]} Bg7 {[%emt 0:00:20]} 40. Bd3 {[%emt 0:00:21]} Bh6 {[%emt 0:00:12]} 41. Bg3 {[%emt 0:00:08]} f5 {[%emt 0:00:01]} 42. Bc4 {[%emt 0:00:04]} Nd4 {[%emt 0:00:25]} 43. Bf7 {[%emt 0:00:31]} Ne2 {[%emt 0:00:03]} 44. Bf2 {[%emt 0:00:01]} Nxf4 {[%emt 0:00:42]} 45. Be3 {[%emt 0:00:01]} g5 {[%emt 0:00:01]} 46. Bxf4+ {[%emt 0:00:30]} gxf4 {[%emt 0:00:01]} 47. Kc2 {[%emt 0:00:00]} Ke5 {[%emt 0:00:37]} 48. Kd3 {[%emt 0:00:20]} f3 {[%emt 0:00:18]} 49. Bh5 {[%emt 0:00:08]} Kf4 {[%emt 0:00:05]} 50. Bf7 {[%emt 0:00:01]} Bf8 {[%emt 0:00:26]} 51. Bd5 {[%emt 0:00:21]} b6 {[%emt 0:00:02]} 52. Bc6 {[%emt 0:00:29]} a5 {[%emt 0:00:02]} 53. Bd5 {[%emt 0:00:35]} Bg7 {[%emt 0:00:02]} 54. b4 {[%emt 0:00:11]} Bxb2 {[%emt 0:00:05]} 55. bxa5 {[%emt 0:00:15]} bxa5 {[%emt 0:00:02]} 56. Bc6 {[%emt 0:00:01]} f2 {[%emt 0:00:10]} 57. Ke2 {[%emt 0:00:00]} Bd4 {[%emt 0:00:01]} 0-1

[Event "EIRCC 2019"]
[Site "Tallinn"]
[Date "2019.12.05"]
[Round "7.1"]
[White "Riazantsev, Alexander"]
[Black "Hjartarson, Johann"]
[Result "1/2-1/2"]
[ECO "E11"]
[WhiteElo "2594"]
[BlackElo "2534"]
[Annotator "ChessBase"]
[PlyCount "95"]
[EventDate "2019.12.05"]
[EventType "swiss"]
[EventCountry "EST"]
[SourceTitle "playchess.com"]
[Source "ChessBase"]
[SourceQuality "1"]
[TimeControl "900+10"]

1. d4 {[%emt 0:00:00]} Nf6 {[%emt 0:00:00]} 2. c4 {[%emt 0:00:00]} e6 {[%emt 0:00:00]} 3. Nf3 {[%emt 0:00:00]} Bb4+ {[%emt 0:00:03]} 4. Bd2 {[%emt 0:00:02]} a5 {[%emt 0:00:09]} 5. a3 {[%emt 0:00:03]} Bxd2+ {[%emt 0:00:08]} 6. Qxd2 {[%emt 0:00:01]} b6 {[%emt 0:00:22]} 7. Nc3 {[%emt 0:00:13]} Bb7 {[%emt 0:00:03]} 8. e3 {[%emt 0:00:34]} d6 {[%emt 0:00:20]} 9. Bd3 {[%emt 0:00:16]} Nbd7 {[%emt 0:00:04]} 10. e4 {[%emt 0:00:17]} e5 {[%emt 0:00:17]} 11. O-O {[%emt 0:00:28]} O-O {[%emt 0:00:57]} 12. Rfe1 {[%emt 0:01:57]} exd4 {[%emt 0:00:46]} 13. Nxd4 {[%emt 0:00:02]} Re8 {[%emt 0:00:03]} 14. f3 {[%emt 0:00:08]} Nc5 {[%emt 0:00:49]} 15. Bc2 {[%emt 0:00:05]} Nfd7 {[%emt 0:00:07]} 16. b4 {[%emt 0:02:36]} Ne6 {[%emt 0:00:14]} 17. Ba4 {[%emt 0:00:08]} Nxd4 {[%emt 0:00:35]} 18. Qxd4 {[%emt 0:00:01]} Re6 {[%emt 0:00:48]} 19. Bxd7 {[%emt 0:01:53]} Qxd7 {[%emt 0:00:04]} 20. b5 {[%emt 0:00:11]} Rae8 {[%emt 0:00:53]} 21. Re2 {[%emt 0:00:01]} f5 {[%emt 0:02:08]} 22. Rae1 {[%emt 0:00:00]} fxe4 {[%emt 0:01:11]} 23. Nxe4 {[%emt 0:00:02]} h6 {[%emt 0:02:20]} 24. a4 {[%emt 0:02:13]} Kh8 {[%emt 0:00:42]} 25. h3 {[%emt 0:01:21]} Qf7 {[%emt 0:00:11]} 26. Nc3 {[%emt 0:00:38]} Rxe2 {[%emt 0:01:04]} 27. Rxe2 {[%emt 0:00:01]} Rxe2 {[%emt 0:00:04]} 28. Nxe2 {[%emt 0:00:01]} Qf5 {[%emt 0:00:09]} 29. Nf4 {[%emt 0:01:06]} Kg8 {[%emt 0:01:08]} 30. Nd5 {[%emt 0:00:25]} Qb1+ {[%emt 0:00:13]} 31. Kh2 {[%emt 0:00:01]} Qc2 {[%emt 0:00:03]} 32. Ne3 {[%emt 0:02:29]} Qe2 {[%emt 0:00:47]} 33. Nf5 {[%emt 0:00:57]} Qe5+ {[%emt 0:00:03]} 34. Qxe5 {[%emt 0:00:01]} dxe5 {[%emt 0:00:02]} 35. Kg3 {[%emt 0:00:27]} Kf7 {[%emt 0:00:02]} 36. Kf2 {[%emt 0:00:01]} Kf6 {[%emt 0:00:18]} 37. Ne3 {[%emt 0:00:04]} Ke6 {[%emt 0:00:09]} 38. Ke2 {[%emt 0:00:32]} g5 {[%emt 0:00:14]} 39. Kd3 {[%emt 0:00:13]} h5 {[%emt 0:00:05]} 40. c5 {[%emt 0:00:04]} Bd5 {[%emt 0:01:20]} 41. cxb6 {[%emt 0:01:46]} cxb6 {[%emt 0:00:03]} 42. Nxd5 {[%emt 0:00:02]} Kxd5 {[%emt 0:00:01]} 43. g3 {[%emt 0:00:01]} Kc5 {[%emt 0:01:04]} 44. Kc3 {[%emt 0:00:05]} Kd5 {[%emt 0:00:07]} 45. Kd3 {[%emt 0:00:01]} Kc5 {[%emt 0:00:02]} 46. Kc3 {[%emt 0:00:48]} Kd5 {[%emt 0:00:02]} 47. Kd3 {[%emt 0:00:01]} Kc5 {[%emt 0:00:02]} 48. Kc3 {[%emt 0:00:25]} 1/2-1/2

[Event "EIRCC 2019"]
[Site "Tallinn"]
[Date "2019.12.05"]
[Round "7.2"]
[White "Saric, Ante"]
[Black "Esipenko, Andrey"]
[Result "0-1"]
[ECO "D02"]
[WhiteElo "2538"]
[BlackElo "2590"]
[Annotator "ChessBase"]
[PlyCount "94"]
[EventDate "2019.12.05"]
[EventType "swiss"]
[EventCountry "EST"]
[SourceTitle "playchess.com"]
[Source "ChessBase"]
[SourceQuality "1"]
[TimeControl "900+10"]

1. Nf3 {[%emt 0:00:00]} d5 {[%emt 0:00:00]} 2. d4 {[%emt 0:00:00]} Nf6 {[%emt 0:00:00]} 3. c4 {[%emt 0:00:00]} e6 {[%emt 0:00:00]} 4. g3 {[%emt 0:00:00]} dxc4 {[%emt 0:00:00]} 5. Qa4+ {[%emt 0:00:00]} Nbd7 {[%emt 0:00:15]} 6. Bg2 {[%emt 0:00:16]} a6 {[%emt 0:00:10]} 7. Nc3 {[%emt 0:00:04]} Be7 {[%emt 0:00:24]} 8. Ne5 {[%emt 0:01:06]} c5 {[%emt 0:00:48]} 9. dxc5 {[%emt 0:01:10]} Bxc5 {[%emt 0:00:07]} 10. Nxc4 {[%emt 0:00:24]} Ra7 {[%emt 0:00:56]} 11. Be3 {[%emt 0:02:16]} b5 {[%emt 0:03:20]} 12. Bxc5 {[%emt 0:00:02]} bxa4 {[%emt 0:02:54]} 13. Nd6+ {[%emt 0:00:03]} Kf8 {[%emt 0:00:02]} 14. Bxa7 {[%emt 0:00:03]} a3 {[%emt 0:00:00]} 15. O-O-O {[%emt 0:02:39]} axb2+ {[%emt 0:00:18]} 16. Kxb2 {[%emt 0:00:01]} Qc7 {[%emt 0:00:21]} 17. Nxc8 {[%emt 0:01:32]} Qxc8 {[%emt 0:00:21]} 18. Rc1 {[%emt 0:00:46]} Qc7 {[%emt 0:00:50]} 19. Nb5 {[%emt 0:00:38]} Qe5+ {[%emt 0:01:58]} 20. Nd4 {[%emt 0:00:02]} g5 {[%emt 0:00:08]} 21. f4 {[%emt 0:00:26]} Qa5 {[%emt 0:00:51]} 22. Nb3 {[%emt 0:01:47]} Qf5 {[%emt 0:01:35]} 23. Nd4 {[%emt 0:00:17]} Qa5 {[%emt 0:01:21]} 24. Nb3 {[%emt 0:00:02]} Qb5 {[%emt 0:00:58]} 25. fxg5 {[%emt 0:01:35]} Qxe2+ {[%emt 0:00:15]} 26. Rc2 {[%emt 0:00:01]} Qe5+ {[%emt 0:00:01]} 27. Bd4 {[%emt 0:01:14]} Qxg5 {[%emt 0:00:01]} 28. h4 {[%emt 0:00:13]} Qg4 {[%emt 0:01:00]} 29. Bh3 {[%emt 0:00:47]} Qe4 {[%emt 0:00:25]} 30. Rf1 {[%emt 0:00:14]} e5 {[%emt 0:00:03]} 31. Bc3 {[%emt 0:00:30]} Kg7 {[%emt 0:00:13]} 32. Rcf2 {[%emt 0:00:10]} Rf8 {[%emt 0:00:14]} 33. Bf5 {[%emt 0:00:19]} Qc4 {[%emt 0:00:05]} 34. g4 {[%emt 0:00:15]} Nd5 {[%emt 0:00:25]} 35. Bd2 {[%emt 0:00:54]} N7b6 {[%emt 0:00:08]} 36. Be6 {[%emt 0:00:29]} f6 {[%emt 0:00:20]} 37. g5 {[%emt 0:00:01]} f5 {[%emt 0:00:06]} 38. Rxf5 {[%emt 0:00:09]} Rxf5 {[%emt 0:00:05]} 39. Rxf5 {[%emt 0:00:00]} Qe2 {[%emt 0:00:10]} 40. Rf7+ {[%emt 0:00:30]} Kg6 {[%emt 0:00:02]} 41. Ra7 {[%emt 0:00:34]} Nc4+ {[%emt 0:00:06]} 42. Kc2 {[%emt 0:00:05]} Qe4+ {[%emt 0:00:13]} 43. Kc1 {[%emt 0:00:11]} Nxd2 {[%emt 0:00:18]} 44. Nxd2 {[%emt 0:00:07]} Qe1+ {[%emt 0:00:03]} 45. Kc2 {[%emt 0:00:03]} Nb4+ {[%emt 0:00:05]} 46. Kc3 {[%emt 0:00:15]} Qc1+ {[%emt 0:00:02]} 47. Kxb4 {[%emt 0:00:04]} Qxd2+ {[%emt 0:00:02]} 0-1

[Event "EIRCC 2019"]
[Site "Tallinn"]
[Date "2019.12.05"]
[Round "7.3"]
[White "Yuffa, Daniil"]
[Black "Belyakov, Bogdan"]
[Result "1-0"]
[ECO "E63"]
[WhiteElo "2587"]
[BlackElo "2520"]
[Annotator "ChessBase"]
[PlyCount "71"]
[EventDate "2019.12.05"]
[EventType "swiss"]
[EventCountry "EST"]
[SourceTitle "playchess.com"]
[Source "ChessBase"]
[SourceQuality "1"]
[TimeControl "900+10"]

1. d4 {[%emt 0:00:00]} Nf6 {[%emt 0:00:00]} 2. c4 {[%emt 0:00:00]} g6 {[%emt 0:00:00]} 3. Nf3 {[%emt 0:00:07]} Bg7 {[%emt 0:00:00]} 4. g3 {[%emt 0:00:02]} O-O {[%emt 0:00:00]} 5. Bg2 {[%emt 0:00:02]} d6 {[%emt 0:00:01]} 6. O-O {[%emt 0:00:02]} Nc6 {[%emt 0:00:03]} 7. Nc3 {[%emt 0:00:02]} a6 {[%emt 0:00:02]} 8. Bf4 {[%emt 0:00:02]} Rb8 {[%emt 0:00:08]} 9. Rc1 {[%emt 0:00:01]} h6 {[%emt 0:00:03]} 10. d5 {[%emt 0:00:58]} e5 {[%emt 0:00:03]} 11. Bd2 {[%emt 0:00:46]} Ne7 {[%emt 0:00:19]} 12. e4 {[%emt 0:00:43]} Nd7 {[%emt 0:01:04]} 13. Ne1 {[%emt 0:00:48]} c5 {[%emt 0:01:42]} 14. a4 {[%emt 0:00:43]} f5 {[%emt 0:01:02]} 15. Nd3 {[%emt 0:00:07]} Nf6 {[%emt 0:02:05]} 16. f4 {[%emt 0:00:59]} Nxe4 {[%emt 0:00:40]} 17. Nxe4 {[%emt 0:00:29]} fxe4 {[%emt 0:00:02]} 18. Bxe4 {[%emt 0:00:12]} Bh3 {[%emt 0:00:31]} 19. Bg2 {[%emt 0:01:02]} Bf5 {[%emt 0:01:12]} 20. Qe2 {[%emt 0:01:23]} Bxd3 {[%emt 0:00:52]} 21. Qxd3 {[%emt 0:00:02]} exf4 {[%emt 0:00:03]} 22. Bxf4 {[%emt 0:00:06]} g5 {[%emt 0:00:16]} 23. Be3 {[%emt 0:00:36]} Bxb2 {[%emt 0:00:03]} 24. Rb1 {[%emt 0:01:54]} Be5 {[%emt 0:00:29]} 25. Bh3 {[%emt 0:00:03]} Qc7 {[%emt 0:01:39]} 26. Be6+ {[%emt 0:00:51]} Kg7 {[%emt 0:00:01]} 27. h4 {[%emt 0:00:59]} Bf6 {[%emt 0:02:06]} 28. h5 {[%emt 0:01:41]} Be5 {[%emt 0:00:39]} 29. Kg2 {[%emt 0:00:13]} b5 {[%emt 0:00:47]} 30. axb5 {[%emt 0:00:01]} axb5 {[%emt 0:00:01]} 31. Rxb5 {[%emt 0:00:45]} Rxb5 {[%emt 0:00:59]} 32. cxb5 {[%emt 0:00:38]} Rxf1 {[%emt 0:01:51]} 33. Qxf1 {[%emt 0:00:08]} Bf6 {[%emt 0:00:03]} 34. Bd2 {[%emt 0:00:30]} Nc8 {[%emt 0:01:34]} 35. Qf5 {[%emt 0:00:03]} Qe7 {[%emt 0:00:01]} 36. Qg6+ {[%emt 0:00:07]} 1-0

[Event "EIRCC 2019"]
[Site "Tallinn"]
[Date "2019.12.05"]
[Round "7.4"]
[White "Lintchevski, Daniil"]
[Black "Kulaots, Kaido"]
[Result "1/2-1/2"]
[ECO "E62"]
[WhiteElo "2515"]
[BlackElo "2544"]
[Annotator "ChessBase"]
[PlyCount "86"]
[EventDate "2019.12.05"]
[EventType "swiss"]
[EventCountry "EST"]
[SourceTitle "playchess.com"]
[Source "ChessBase"]
[SourceQuality "1"]
[TimeControl "900+10"]

1. Nf3 {[%emt 0:00:00]} Nf6 {[%emt 0:00:00]} 2. c4 {[%emt 0:00:00]} g6 {[%emt 0:00:01]} 3. g3 {[%emt 0:00:07]} Bg7 {[%emt 0:00:17]} 4. Bg2 {[%emt 0:00:02]} O-O {[%emt 0:00:09]} 5. O-O {[%emt 0:00:03]} d6 {[%emt 0:00:02]} 6. d4 {[%emt 0:00:23]} Nc6 {[%emt 0:00:06]} 7. Nc3 {[%emt 0:00:30]} e5 {[%emt 0:00:10]} 8. dxe5 {[%emt 0:00:14]} Nxe5 {[%emt 0:00:03]} 9. Nxe5 {[%emt 0:00:59]} dxe5 {[%emt 0:00:03]} 10. Bg5 {[%emt 0:00:52]} Qxd1 {[%emt 0:01:31]} 11. Raxd1 {[%emt 0:00:02]} h6 {[%emt 0:00:20]} 12. Bc1 {[%emt 0:00:04]} c6 {[%emt 0:00:25]} 13. b3 {[%emt 0:00:03]} Re8 {[%emt 0:02:57]} 14. h3 {[%emt 0:00:32]} Bf5 {[%emt 0:02:10]} 15. Be3 {[%emt 0:00:44]} Bf8 {[%emt 0:00:24]} 16. g4 {[%emt 0:02:45]} Be6 {[%emt 0:01:21]} 17. Rd3 {[%emt 0:00:02]} Rec8 {[%emt 0:01:09]} 18. Rfd1 {[%emt 0:00:37]} Kg7 {[%emt 0:00:42]} 19. Bc1 {[%emt 0:00:55]} Rc7 {[%emt 0:01:25]} 20. Bb2 {[%emt 0:00:14]} Rd7 {[%emt 0:00:15]} 21. Rxd7 {[%emt 0:03:49]} Nxd7 {[%emt 0:00:05]} 22. e3 {[%emt 0:00:46]} f5 {[%emt 0:00:18]} 23. gxf5 {[%emt 0:00:31]} gxf5 {[%emt 0:00:02]} 24. Ne2 {[%emt 0:00:01]} Kf7 {[%emt 0:01:21]} 25. f4 {[%emt 0:00:05]} e4 {[%emt 0:00:47]} 26. Nd4 {[%emt 0:00:28]} Nc5 {[%emt 0:00:06]} 27. Bf1 {[%emt 0:00:18]} Be7 {[%emt 0:01:00]} 28. Rd2 {[%emt 0:00:43]} Rg8+ {[%emt 0:00:38]} 29. Rg2 {[%emt 0:00:01]} Rxg2+ {[%emt 0:00:04]} 30. Kxg2 {[%emt 0:00:02]} Bd7 {[%emt 0:00:18]} 31. Bc3 {[%emt 0:00:30]} Bf6 {[%emt 0:00:29]} 32. Ne2 {[%emt 0:00:04]} Nd3 {[%emt 0:00:09]} 33. Bxf6 {[%emt 0:00:21]} Kxf6 {[%emt 0:00:01]} 34. Nc3 {[%emt 0:00:02]} Nb4 {[%emt 0:00:08]} 35. Kf2 {[%emt 0:00:14]} c5 {[%emt 0:00:11]} 36. Be2 {[%emt 0:00:23]} Be8 {[%emt 0:00:36]} 37. Ke1 {[%emt 0:00:12]} Ke6 {[%emt 0:00:17]} 38. Kd2 {[%emt 0:00:04]} Kd6 {[%emt 0:00:13]} 39. a3 {[%emt 0:00:13]} Nc6 {[%emt 0:00:03]} 40. Nb5+ {[%emt 0:00:37]} Kd7 {[%emt 0:00:02]} 41. Nc3 {[%emt 0:00:02]} Kd6 {[%emt 0:00:13]} 42. Nb5+ {[%emt 0:00:02]} Kd7 {[%emt 0:00:04]} 43. Nc3 {[%emt 0:00:01]} Kd6 {[%emt 0:00:01]} 1/2-1/2

[Event "EIRCC 2019"]
[Site "Tallinn"]
[Date "2019.12.05"]
[Round "7.12"]
[White "Nguyen, Thai Dai Van"]
[Black "Lysyj, Igor"]
[Result "1/2-1/2"]
[ECO "D31"]
[WhiteElo "2364"]
[BlackElo "2599"]
[Annotator "ChessBase"]
[PlyCount "85"]
[EventDate "2019.12.05"]
[EventType "swiss"]
[EventCountry "EST"]
[SourceTitle "playchess.com"]
[Source "ChessBase"]
[SourceQuality "1"]
[TimeControl "900+10"]

1. d4 {[%emt 0:00:00]} d5 {[%emt 0:00:00]} 2. c4 {[%emt 0:00:00]} e6 {[%emt 0:00:00]} 3. Nc3 {[%emt 0:00:00]} dxc4 {[%emt 0:00:00]} 4. e4 {[%emt 0:00:01]} c5 {[%emt 0:00:00]} 5. d5 {[%emt 0:00:02]} Nf6 {[%emt 0:00:06]} 6. Bxc4 {[%emt 0:00:02]} exd5 {[%emt 0:00:02]} 7. Nxd5 {[%emt 0:01:07]} Be6 {[%emt 0:00:01]} 8. Nxf6+ {[%emt 0:06:35]} Qxf6 {[%emt 0:00:02]} 9. Bb5+ {[%emt 0:00:11]} Nd7 {[%emt 0:01:53]} 10. Ne2 {[%emt 0:00:55]} a6 {[%emt 0:01:02]} 11. Bxd7+ {[%emt 0:00:02]} Bxd7 {[%emt 0:00:02]} 12. Nc3 {[%emt 0:00:20]} Bd6 {[%emt 0:00:56]} 13. O-O {[%emt 0:01:35]} O-O {[%emt 0:00:56]} 14. Be3 {[%emt 0:00:51]} Rfd8 {[%emt 0:03:52]} 15. Qh5 {[%emt 0:00:31]} Qg6 {[%emt 0:00:37]} 16. Qxg6 {[%emt 0:00:16]} hxg6 {[%emt 0:00:01]} 17. Rfd1 {[%emt 0:01:28]} Bc6 {[%emt 0:00:40]} 18. Nd5 {[%emt 0:00:01]} Bf8 {[%emt 0:01:28]} 19. Nb6 {[%emt 0:00:50]} Rxd1+ {[%emt 0:00:37]} 20. Rxd1 {[%emt 0:00:02]} Re8 {[%emt 0:00:03]} 21. Nd7 {[%emt 0:01:05]} Rxe4 {[%emt 0:02:31]} 22. Nxf8 {[%emt 0:00:06]} Kxf8 {[%emt 0:00:03]} 23. Bxc5+ {[%emt 0:00:07]} Kg8 {[%emt 0:00:01]} 24. Be3 {[%emt 0:01:03]} Rg4 {[%emt 0:00:08]} 25. g3 {[%emt 0:00:07]} Rc4 {[%emt 0:00:06]} 26. Rc1 {[%emt 0:00:32]} Re4 {[%emt 0:00:02]} 27. Rc3 {[%emt 0:00:13]} f6 {[%emt 0:00:03]} 28. f3 {[%emt 0:00:05]} Ra4 {[%emt 0:00:08]} 29. Ra3 {[%emt 0:00:50]} Rc4 {[%emt 0:02:00]} 30. Rc3 {[%emt 0:00:03]} Rxc3 {[%emt 0:00:00]} 31. bxc3 {[%emt 0:00:01]} Bxf3 {[%emt 0:00:02]} 32. a4 {[%emt 0:00:18]} Kf7 {[%emt 0:00:23]} 33. Kf2 {[%emt 0:00:08]} Bd5 {[%emt 0:00:07]} 34. h4 {[%emt 0:00:25]} Ke6 {[%emt 0:00:03]} 35. Bc5 {[%emt 0:00:20]} Bc6 {[%emt 0:00:31]} 36. a5 {[%emt 0:00:02]} Bb5 {[%emt 0:00:13]} 37. Ke3 {[%emt 0:00:25]} Kf7 {[%emt 0:00:10]} 38. Kf4 {[%emt 0:00:12]} Bc6 {[%emt 0:00:01]} 39. Ke3 {[%emt 0:00:19]} g5 {[%emt 0:00:04]} 40. hxg5 {[%emt 0:00:01]} fxg5 {[%emt 0:00:01]} 41. Bd4 {[%emt 0:00:16]} g6 {[%emt 0:00:02]} 42. Bb6 {[%emt 0:00:05]} Ke6 {[%emt 0:00:01]} 43. Kd4 {[%emt 0:00:11] Ke5+} 1/2-1/2

[Event "EIRCC 2019"]
[Site "Tallinn"]
[Date "2019.12.05"]
[Round "7.13"]
[White "Sebenik, Matej"]
[Black "Pohjala, Henri"]
[Result "1-0"]
[ECO "D45"]
[WhiteElo "2504"]
[BlackElo "2418"]
[Annotator "ChessBase"]
[PlyCount "39"]
[EventDate "2019.12.05"]
[EventType "swiss"]
[EventCountry "EST"]
[SourceTitle "playchess.com"]
[Source "ChessBase"]
[SourceQuality "1"]
[TimeControl "900+10"]

1. Nf3 {[%emt 0:00:00]} d5 {[%emt 0:00:00]} 2. d4 {[%emt 0:00:00]} Nf6 {[%emt 0:00:00]} 3. c4 {[%emt 0:00:00]} c6 {[%emt 0:00:00]} 4. Nc3 {[%emt 0:00:00]} a6 {[%emt 0:00:00]} 5. e3 {[%emt 0:00:01]} e6 {[%emt 0:00:00]} 6. b3 {[%emt 0:00:16]} Nbd7 {[%emt 0:00:00]} 7. Bd3 {[%emt 0:00:13]} b6 {[%emt 0:00:04]} 8. O-O {[%emt 0:00:05]} Bb7 {[%emt 0:00:02]} 9. Bb2 {[%emt 0:00:20]} Be7 {[%emt 0:01:04]} 10. Qc2 {[%emt 0:01:13]} O-O {[%emt 0:01:04]} 11. Ne5 {[%emt 0:00:02]} dxc4 {[%emt 0:01:09]} 12. bxc4 {[%emt 0:00:22]} c5 {[%emt 0:00:02]} 13. Rad1 {[%emt 0:00:13]} Qc7 {[%emt 0:00:34]} 14. Nxd7 {[%emt 0:00:08]} Qxd7 {[%emt 0:00:48]} 15. d5 {[%emt 0:00:01]} exd5 {[%emt 0:00:26]} 16. Nxd5 {[%emt 0:00:14]} Bxd5 {[%emt 0:01:24]} 17. cxd5 {[%emt 0:00:01]} h6 {[%emt 0:00:53]} 18. e4 {[%emt 0:00:59]} c4 {[%emt 0:02:41]} 19. Bxc4 {[%emt 0:00:43]} Rfc8 {[%emt 0:00:12]} 20. Qe2 {[%emt 0:00:40]} 1-0

[Event "EIRCC 2019"]
[Site "Tallinn"]
[Date "2019.12.05"]
[Round "7.14"]
[White "Postny, Evgeny"]
[Black "Smirnov, Artem"]
[Result "1-0"]
[ECO "E11"]
[WhiteElo "2598"]
[BlackElo "2337"]
[Annotator "ChessBase"]
[PlyCount "103"]
[EventDate "2019.12.05"]
[EventType "swiss"]
[EventCountry "EST"]
[SourceTitle "playchess.com"]
[Source "ChessBase"]
[SourceQuality "1"]
[TimeControl "900+10"]

1. d4 {[%emt 0:00:00]} Nf6 {[%emt 0:00:00]} 2. c4 {[%emt 0:00:00]} e6 {[%emt 0:00:00]} 3. Nf3 {[%emt 0:00:00]} Bb4+ {[%emt 0:00:00]} 4. Nbd2 {[%emt 0:00:01]} O-O {[%emt 0:00:19]} 5. a3 {[%emt 0:00:02]} Be7 {[%emt 0:00:04]} 6. e4 {[%emt 0:00:03]} d6 {[%emt 0:00:03]} 7. Be2 {[%emt 0:00:07]} Nfd7 {[%emt 0:00:37]} 8. b3 {[%emt 0:00:17]} e5 {[%emt 0:00:17]} 9. Bb2 {[%emt 0:00:06]} exd4 {[%emt 0:00:25]} 10. Nxd4 {[%emt 0:00:04]} Bf6 {[%emt 0:01:27]} 11. Qc2 {[%emt 0:00:14]} Nc6 {[%emt 0:00:47]} 12. N4f3 {[%emt 0:01:05]} Bxb2 {[%emt 0:03:00]} 13. Qxb2 {[%emt 0:00:02]} Qf6 {[%emt 0:00:54]} 14. Qxf6 {[%emt 0:00:41]} Nxf6 {[%emt 0:00:02]} 15. O-O-O {[%emt 0:01:16]} Ng4 {[%emt 0:05:54]} 16. Rhf1 {[%emt 0:00:14]} f5 {[%emt 0:00:01]} 17. h3 {[%emt 0:00:53]} Nge5 {[%emt 0:01:21]} 18. Nxe5 {[%emt 0:00:36]} dxe5 {[%emt 0:01:56]} 19. exf5 {[%emt 0:00:28]} Bxf5 {[%emt 0:00:03]} 20. Bf3 {[%emt 0:00:58]} Nd4 {[%emt 0:00:02]} 21. Bd5+ {[%emt 0:00:33]} Kh8 {[%emt 0:00:06]} 22. Nf3 {[%emt 0:01:43]} Nxb3+ {[%emt 0:01:05]} 23. Kb2 {[%emt 0:00:01]} Nc5 {[%emt 0:00:02]} 24. Nxe5 {[%emt 0:00:04]} c6 {[%emt 0:00:23]} 25. Bf3 {[%emt 0:00:35]} Rae8 {[%emt 0:00:08]} 26. Rfe1 {[%emt 0:00:03]} Kg8 {[%emt 0:00:04]} 27. Kc3 {[%emt 0:00:42]} g6 {[%emt 0:00:06]} 28. Re3 {[%emt 0:01:45]} Kg7 {[%emt 0:00:06]} 29. h4 {[%emt 0:00:33]} Rd8 {[%emt 0:00:19]} 30. Rxd8 {[%emt 0:01:45]} Rxd8 {[%emt 0:00:00]} 31. g4 {[%emt 0:00:03]} Be6 {[%emt 0:00:16]} 32. Be2 {[%emt 0:00:05]} a5 {[%emt 0:00:11]} 33. Nd3 {[%emt 0:01:05]} Nxd3 {[%emt 0:00:12]} 34. Bxd3 {[%emt 0:00:02]} Kf7 {[%emt 0:00:11]} 35. g5 {[%emt 0:00:24]} b6 {[%emt 0:00:13]} 36. f4 {[%emt 0:00:35]} c5 {[%emt 0:00:04]} 37. h5 {[%emt 0:00:04]} Bg4 {[%emt 0:00:17]} 38. hxg6+ {[%emt 0:01:18]} hxg6 {[%emt 0:00:01]} 39. Re1 {[%emt 0:00:23]} Rd4 {[%emt 0:00:16]} 40. Be4 {[%emt 0:00:06]} Kg7 {[%emt 0:00:14]} 41. Bd5 {[%emt 0:00:28]} Kf8 {[%emt 0:00:11]} 42. Rb1 {[%emt 0:00:11]} Rxf4 {[%emt 0:00:10]} 43. Rxb6 {[%emt 0:00:02]} Bf5 {[%emt 0:00:03]} 44. Rc6 {[%emt 0:00:19]} Rg4 {[%emt 0:00:05]} 45. Rxc5 {[%emt 0:00:02]} Rg3+ {[%emt 0:00:10]} 46. Kd4 {[%emt 0:00:02]} Rxa3 {[%emt 0:00:18]} 47. Ke5 {[%emt 0:00:02]} Ke7 {[%emt 0:00:15]} 48. Rc7+ {[%emt 0:00:04]} Ke8 {[%emt 0:00:08]} 49. c5 {[%emt 0:00:28]} a4 {[%emt 0:00:10]} 50. Ra7 {[%emt 0:00:09]} Re3+ {[%emt 0:00:09]} 51. Kd6 {[%emt 0:00:05]} a3 {[%emt 0:00:03]} 52. Ra8+ {[%emt 0:00:03]} 1-0